bitfinex/quotes_SOLUSD_20240703
["timestamp","ask_amount","ask_price","bid_price","bid_amount"]
[1720032261167,7.0195,142.46,142.42,69.5748]
[1720032262164,15.8994,142.5,142.44,7.0202]
[1720032262366,7.0185,142.48,142.44,24.571]
[1720032262675,20.2885,142.48,142.44,24.571]
[1720032262883,7.0185,142.48,142.44,24.571]
[1720032263088,7.0185,142.48,142.44,37.841]
[1720032263275,7.0185,142.48,142.44,24.571]
[1720032265667,7.0185,142.48,142.44,17.5509]
[1720032265987,7.0191,142.47,142.44,17.5509]
[1720032267987,20.2886,142.48,142.44,24.5713]
[1720032268892,20.2886,142.48,142.43,7.0209]
[1720032268893,7.0191,142.47,142.43,7.0209]
[1720032269086,7.0191,142.47,142.42,65.2913]
[1720032269278,20.2891,142.47,142.42,65.2913]
[1720032269481,20.2885,142.48,142.44,7.0203]
[1720032270167,20.2885,142.48,142.43,24.5728]
[1720032270367,20.2885,142.48,142.43,37.8428]
[1720032270792,7.019,142.47,142.43,37.8428]
[1720032271089,7.019,142.47,142.43,24.5728]
[1720032271793,15.8994,142.5,142.44,7.0202]
[1720032272096,13.27,142.48,142.44,7.0202]
[1720032272709,20.2888,142.48,142.44,7.38919079]
[1720032273894,7.0188,142.48,142.44,7.38919079]
[1720032275006,7.019,142.47,142.43,37.8428]
[1720032275311,13.27,142.48,142.4,6.1653]
[1720032275496,7.0208,142.44,142.4,6.1653]
[1720032275674,7.0191,142.47,142.42,13.27]
[1720032275884,7.0188,142.48,142.38,13.27]
[1720032276201,13.27,142.48,142.44,7.0204]
[1720032276387,20.2882,142.49,142.45,7.0199]
[1720032276590,20.2882,142.49,142.44,7.0202]
[1720032276773,7.0187,142.48,142.44,7.0202]
[1720032278899,7.0187,142.48,142.44,7.37956733]
[1720032280402,7.0191,142.47,142.43,37.8429]
[1720032280977,7.0191,142.47,142.44,1.40234506]
[1720032281500,7.0187,142.48,142.44,8.42274506]
[1720032285796,7.019,142.47,142.43,24.5728]
[1720032286105,7.019,142.47,142.43,37.8428]
[1720032288309,7.0187,142.48,142.43,37.8428]
[1720032289010,7.0187,142.48,142.44,7.0204]
[1720032290013,13.27,142.49,142.43,30.822]
[1720032290014,7.019,142.47,142.43,37.8428]
[1720032290208,13.27,142.49,142.43,13.27]
[1720032290391,13.27,142.48,142.41,17.5549]
[1720032290588,7.0194,142.47,142.43,7.0209]
[1720032290793,7.0185,142.49,142.44,7.0202]
[1720032291096,27.46712207,142.54,142.48,7.0181]
[1720032291284,15.9587,142.54,142.49,17.5449]
[1720032291489,7.0153,142.55,142.51,7.0169]
[1720032292193,39.899,142.58,142.54,7.0155]
[1720032292194,29.3779,142.58,142.54,7.0155]
[1720032292408,13.27,142.57,142.52,1.40153151]
[1720032292603,13.27,142.57,142.51,13.27]
[1720032293512,7.0149,142.56,142.51,20.2869]
[1720032293687,20.2849,142.56,142.51,20.2869]
[1720032294514,7.0151,142.55,142.51,20.2869]
[1720032297395,20.2846,142.56,142.51,20.2869]
[1720032298219,7.0146,142.56,142.51,20.2869]
[1720032300291,7.0151,142.55,142.51,20.2869]
[1720032300993,7.0165,142.53,142.48,26.377]
[1720032301208,13.27,142.54,142.49,13.27]
[1720032301408,7.0152,142.55,142.5,20.2872]
[1720032301729,7.0152,142.55,142.51,7.017]
[1720032301891,17.5353,142.57,142.49,24.5624]
[1720032302090,7.016,142.53,142.49,30.8149]
[1720032302315,20.2855,142.54,142.49,37.8329]
[1720032302515,7.0155,142.54,142.49,37.8329]
[1720032302724,7.0161,142.53,142.49,37.8329]
[1720032303208,20.2857,142.54,142.49,37.8329]
[1720032304293,20.2861,142.53,142.49,17.5449]
[1720032304603,7.0166,142.52,142.48,20.2883]
[1720032304800,20.2862,142.53,142.48,20.2883]
[1720032304995,22.364,142.58,142.47,5.7905]
[1720032305199,7.0147,142.56,142.51,20.2868]
[1720032306112,20.2847,142.56,142.51,20.2868]
[1720032308115,20.285,142.55,142.51,7.0168]
[1720032308417,13.27,142.54,142.51,7.0168]
[1720032308627,20.285,142.55,142.51,7.0168]
[1720032309330,13.27,142.55,142.51,7.0168]
[1720032309935,7.0148,142.56,142.51,7.0168]
[1720032310117,20.2848,142.56,142.51,7.0168]
[1720032310316,7.0148,142.56,142.51,7.0168]
[1720032311213,7.0148,142.56,142.51,20.2868]
[1720032311415,20.2848,142.56,142.51,20.2868]
[1720032312516,20.2848,142.56,142.51,7.0168]
[1720032312821,7.0148,142.56,142.51,7.0168]
[1720032313029,13.27,142.55,142.51,7.0168]
[1720032313531,13.27,142.55,142.51,5.7905]
[1720032313730,22.7414,142.62,142.51,5.7905]
[1720032313731,7.0144,142.57,142.53,7.016]
[1720032315321,13.27,142.57,142.53,24.5549]
[1720032316723,20.2841,142.57,142.53,24.5549]
[1720032317321,7.0154,142.55,142.51,17.5426]
[1720032317648,20.2854,142.55,142.51,17.5426]
[1720032318437,20.2856,142.54,142.49,7.0178]
[1720032318633,53.08,142.59,142.47,12.8092]
[1720032318634,20.2867,142.52,142.47,12.8092]
[1720032318942,20.2867,142.52,142.47,30.3566]
[1720032319269,13.27,142.52,142.48,7.0182]
[1720032319419,20.2868,142.52,142.47,24.5662]
[1720032319912,20.2868,142.52,142.48,7.0184]
[1720032319913,13.27,142.52,142.48,7.0184]
[1720032321154,7.0153,142.55,142.5,7.0175]
[1720032321367,13.27,142.53,142.5,7.0175]
[1720032321561,7.0153,142.55,142.5,7.0175]
[1720032322140,13.27,142.53,142.5,7.0175]
[1720032322545,29.7561,142.56,142.51,7.0168]
[1720032322767,13.27,142.55,142.51,24.5594]
[1720032323155,13.27,142.55,142.51,17.5426]
[1720032323345,13.27,142.55,142.51,24.5593]
[1720032324342,20.2853,142.55,142.51,24.5593]
[1720032325956,13.27,142.55,142.51,24.5593]
[1720032326846,13.27,142.55,142.51,17.5426]
[1720032327163,20.2846,142.56,142.52,7.0162]
[1720032327741,7.0146,142.56,142.52,7.0162]
[1720032327948,20.2846,142.56,142.52,7.0162]
[1720032330258,20.2861,142.53,142.49,7.0176]
[1720032330572,75.9564,142.59,142.47,7.0188]
[1720032330573,20.2865,142.52,142.47,7.0188]
[1720032331141,7.0172,142.51,142.46,13.6383]
[1720032331360,7.0172,142.51,142.46,26.9083]
[1720032331573,7.0172,142.51,142.47,7.0188]
[1720032331771,20.2867,142.52,142.47,7.0188]
[1720032333162,20.2867,142.52,142.48,7.0185]
[1720032334080,20.2867,142.52,142.47,24.5662]
[1720032334366,7.018,142.49,142.44,24.5709]
[1720032334571,53.08,142.52,142.44,24.5709]
[1720032334866,7.0181,142.49,142.44,24.5709]
[1720032335668,7.0186,142.48,142.44,24.5709]
[1720032336169,7.0182,142.49,142.44,24.5709]
[1720032337047,17.5428,142.51,142.41,17.5539]
[1720032337256,13.27,142.45,142.41,24.5755]
[1720032337648,13.27,142.45,142.43,7.0209]
[1720032337861,16.149,142.48,142.43,24.5729]
[1720032337862,13.27,142.46,142.43,24.5729]
[1720032338049,13.27,142.46,142.42,7.0213]
[1720032338546,13.27,142.46,142.42,24.5743]
[1720032338750,13.27,142.46,142.43,7.0207]
[1720032338957,13.27,142.47,142.43,7.0207]
[1720032339368,13.27,142.47,142.44,7.0204]
[1720032339576,13.27,142.46,142.44,7.0204]
[1720032339874,13.27,142.46,142.43,7.0207]
[1720032340254,13.27,142.46,142.42,24.5743]
[1720032340556,20.2905,142.44,142.4,7.0223]
[1720032340756,13.27,142.43,142.4,7.0223]
[1720032341076,13.27,142.43,142.39,24.5791]
[1720032341276,89.43583111,142.52,142.45,35.0985]
[1720032341277,5.53915349,142.52,142.45,35.0985]
[1720032341575,15.4457,142.58,142.54,7.0154]
[1720032341789,6.6312,142.6,142.49,6.6575]
[1720032341790,13.6439,142.6,142.53,13.27]
[1720032341975,13.27,142.59,142.55,7.0147]
[1720032342480,20.2831,142.59,142.55,7.0147]
[1720032342977,20.2831,142.59,142.54,7.0153]
[1720032343765,7.0131,142.59,142.54,7.0153]
[1720032343961,7.0137,142.58,142.53,24.5556]
[1720032344178,7.0141,142.57,142.53,17.5397]
[1720032344476,7.0146,142.56,142.52,0.34]
[1720032344694,7.0146,142.56,142.51,7.0168]
[1720032346782,7.0146,142.56,142.52,0.751711]
[1720032349265,6.6312,142.6,142.52,0.751711]
[1720032349467,7.0139,142.58,142.53,7.3559]
[1720032349671,7.0139,142.58,142.54,0.75160552]
[1720032349858,7.0139,142.58,142.54,7.76710552]
[1720032350666,7.0139,142.58,142.53,8.10900205]
[1720032352868,7.0146,142.56,142.53,0.75320205]
[1720032353680,7.0142,142.57,142.53,0.75320205]
[1720032353867,6.6312,142.6,142.53,0.75320205]
[1720032354078,7.014,142.58,142.53,7.76890205]
[1720032354587,6.6312,142.6,142.54,24.5539]
[1720032354788,6.6312,142.6,142.55,0.75309637]
[1720032355466,17.5306,142.61,142.55,0.75309637]
[1720032356281,7.0136,142.58,142.55,0.75309637]
[1720032356802,7.0136,142.58,142.55,0.75312791]
[1720032357695,7.0134,142.59,142.55,7.76812791]
[1720032357895,7.0128,142.6,142.56,7.0145]
[1720032358105,15.4457,142.62,142.57,0.75302259]
[1720032358307,22.4573,142.62,142.57,0.75302259]
[1720032358492,0.8461316,142.63,142.58,24.5474]
[1720032358797,7.0119,142.62,142.59,0.75291696]
[1720032359182,7.8573316,142.63,142.59,0.75291696]
[1720032360282,7.0116,142.62,142.58,7.3532]
[1720032360493,7.0116,142.62,142.58,0.34]
[1720032360695,7.0123,142.61,142.57,17.5351]
[1720032361685,7.0127,142.6,142.56,0.34]
[1720032362087,7.0131,142.59,142.56,0.34]
[1720032362476,16.3186,142.61,142.51,17.5422]
[1720032362887,7.0146,142.56,142.51,24.559]
[1720032363092,7.0146,142.56,142.52,7.0165]
[1720032363296,7.0132,142.59,142.53,17.5398]
[1720032363602,7.0132,142.59,142.55,7.015]
[1720032363902,16.3186,142.61,142.53,24.5558]
[1720032363903,33.8491,142.61,142.53,24.5558]
[1720032364379,7.0138,142.58,142.53,24.5558]
[1720032364989,7.0153,142.55,142.51,7.0169]
[1720032365198,7.0153,142.55,142.5,30.9137]
[1720032365505,7.0153,142.55,142.5,24.5604]
[1720032366393,7.0153,142.55,142.51,7.0169]
[1720032368400,7.0161,142.53,142.47,23.7346]
[1720032368585,7.0161,142.53,142.48,7.0182]
[1720032368796,26.51,142.58,142.49,17.5444]
[1720032369402,26.51,142.58,142.51,7.0165]
[1720032369897,7.0147,142.56,142.51,7.0165]
[1720032371211,7.0153,142.55,142.5,7.0171]
[1720032371505,7.0153,142.55,142.51,7.017]
[1720032371715,7.0146,142.56,142.51,7.017]
[1720032372010,7.015,142.55,142.51,7.017]
[1720032372404,7.015,142.55,142.5,7.0174]
[1720032372700,48.63319485,142.61,142.51,0.17]
[1720032372899,0.34,142.6,142.49,17.8842]
[1720032373202,7.0157,142.54,142.49,24.9019]
[1720032373590,7.0161,142.53,142.49,17.7142]
[1720032373794,7.0161,142.53,142.49,24.5621]
[1720032374409,17.5356,142.57,142.49,17.5442]
[1720032374410,7.0165,142.52,142.49,17.5442]
[1720032374602,7.0165,142.52,142.48,7.0183]
[1720032375205,7.0161,142.53,142.48,7.0183]
[1720032375403,7.0161,142.53,142.48,24.5645]
[1720032375988,7.0161,142.53,142.49,7.018]
[1720032377702,7.0161,142.53,142.49,20.288]
[1720032377999,17.5385,142.55,142.46,2.95282876]
[1720032378211,13.27,142.5,142.45,44.2684]
[1720032378385,20.2875,142.5,142.45,44.2684]
[1720032379199,20.2875,142.5,142.46,7.0193]
[1720032379406,7.0175,142.5,142.46,7.0193]
[1720032380206,7.0189,142.48,142.43,7.0208]
[1720032381699,7.0189,142.48,142.44,7.1904]
[1720032382105,7.0189,142.48,142.42,17.7229]
[1720032382106,7.019,142.47,142.43,7.0207]
[1720032382409,16.4003,142.5,142.42,24.5743]
[1720032382711,7.0191,142.47,142.42,24.5743]
[1720032382913,7.0187,142.48,142.43,7.0209]
[1720032383122,7.0187,142.48,142.44,7.0204]
[1720032383907,7.0182,142.49,142.44,7.0204]
[1720032384496,16.4003,142.5,142.44,7.0204]
[1720032384497,16.4003,142.5,142.45,7.0199]
[1720032384706,7.018,142.49,142.45,7.0199]
[1720032386122,23.418,142.5,142.45,7.0199]
[1720032386724,7.018,142.49,142.45,7.0199]
[1720032388325,7.018,142.49,142.44,24.5714]
[1720032388902,7.0187,142.48,142.44,17.551]
[1720032389503,7.0187,142.48,142.44,24.5712]
[1720032393807,16.4003,142.5,142.44,24.5712]
[1720032394036,7.0178,142.5,142.46,7.0193]
[1720032394221,7.0184,142.49,142.44,24.5713]
[1720032395008,7.0177,142.5,142.45,7.02]
[1720032395325,7.0177,142.5,142.46,7.0194]
[1720032396137,7.0177,142.5,142.45,7.0198]
[1720032396814,7.0146,142.56,142.51,24.5593]
[1720032397024,21.7936,142.57,142.48,17.546]
[1720032397325,15.5431,142.57,142.51,7.017]
[1720032397508,7.0155,142.54,142.5,24.561]
[1720032397704,7.0155,142.54,142.5,17.5435]
[1720032398835,7.0155,142.54,142.5,24.5609]
[1720032399537,7.0152,142.55,142.5,24.5609]
[1720032403015,7.0157,142.54,142.5,24.5609]
[1720032403210,7.016,142.53,142.49,7.0179]
[1720032403840,7.016,142.53,142.49,20.2879]
[1720032404015,20.286,142.53,142.48,7.0183]
[1720032404220,20.286,142.53,142.49,7.018]
[1720032404633,7.016,142.53,142.49,20.288]
[1720032405039,20.2857,142.54,142.49,20.288]
[1720032405231,13.27,142.53,142.47,17.5466]
[1720032405432,17.5382,142.55,142.47,30.8166]
[1720032405433,13.27,142.52,142.47,30.8166]
[1720032405623,13.27,142.52,142.47,17.5466]
[1720032406328,20.2873,142.51,142.47,24.5655]
[1720032406929,13.27,142.49,142.44,24.5704]
[1720032407131,20.2887,142.48,142.44,17.5503]
[1720032407842,20.2887,142.48,142.41,6.3789]
[1720032407843,20.2896,142.46,142.41,37.2035]
[1720032408234,20.2896,142.46,142.42,7.0213]
[1720032408925,15.9555,142.51,142.38,17.5578]
[1720032408926,13.27,142.45,142.38,17.5578]
[1720032409123,7.0219,142.41,142.37,6.6303]
[1720032409352,13.27,142.43,142.38,13.27]
[1720032409541,20.2911,142.43,142.39,7.0229]
[1720032409722,7.0206,142.44,142.39,7.0229]
[1720032409921,7.0206,142.44,142.39,7.0228]
[1720032410253,7.0206,142.44,142.39,24.5796]
[1720032410625,44.1172,142.48,142.39,17.5568]
[1720032410626,7.0211,142.43,142.39,17.5568]
[1720032411334,7.0215,142.42,142.37,7.0237]
[1720032413948,43.1826,142.45,142.36,17.5601]
[1720032414536,7.0216,142.42,142.37,7.0234]
[1720032416354,7.0216,142.42,142.38,7.0234]
[1720032417446,7.022,142.41,142.36,17.5601]
[1720032417650,6.1036,142.43,142.33,17.5639]
[1720032417829,7.0231,142.39,142.34,7.0251]
[1720032418228,7.0235,142.38,142.34,7.0251]
[1720032418439,7.0231,142.39,142.34,7.0251]
[1720032419941,7.0234,142.38,142.34,7.0251]
[1720032420258,7.0239,142.37,142.33,24.5897]
[1720032421335,17.5538,142.42,142.33,24.5897]
[1720032421538,17.5538,142.42,142.32,7.0263]
[1720032421539,16.6491,142.39,142.32,7.0263]
[1720032421734,7.0257,142.34,142.3,24.5953]
[1720032421947,7.0253,142.35,142.31,7.0267]
[1720032422263,7.0256,142.34,142.3,24.5953]
[1720032422764,7.0258,142.34,142.3,24.5954]
[1720032422966,7.0259,142.33,142.29,7.0277]
[1720032423268,7.0264,142.32,142.28,7.0282]
[1720032423556,17.5612,142.36,142.29,7.0278]
[1720032423753,17.5612,142.36,142.28,7.0282]
[1720032423954,7.0267,142.32,142.27,24.5997]
[1720032424138,7.0269,142.31,142.27,24.5997]
[1720032425559,7.0265,142.32,142.28,7.0283]
[1720032426359,7.0271,142.31,142.27,24.5997]
[1720032426564,7.0282,142.29,142.25,7.0297]
[1720032426859,7.0282,142.29,142.24,24.6054]
[1720032427651,7.0282,142.29,142.25,7.0298]
[1720032427848,7.0276,142.3,142.25,7.0298]
[1720032428056,7.0276,142.3,142.26,7.0293]
[1720032429363,7.0279,142.29,142.25,7.0296]
[1720032429655,33.742,142.32,142.24,17.5754]
[1720032429656,7.0286,142.28,142.24,17.5754]
[1720032429831,7.0286,142.28,142.24,24.6057]
[1720032430155,7.0286,142.28,142.24,17.5754]
[1720032430935,7.0293,142.26,142.21,24.094]
[1720032431136,7.0293,142.26,142.22,0.17]
[1720032431342,7.0293,142.26,142.22,0.34]
[1720032431731,7.029,142.27,142.22,7.3709]
[1720032432838,17.5712,142.28,142.18,17.5822]
[1720032433037,17.5712,142.28,142.19,7.0325]
[1720032433038,7.031,142.23,142.19,7.0325]
[1720032433247,7.0299,142.25,142.2,17.5807]
[1720032433647,7.0303,142.24,142.2,17.5807]
[1720032434661,7.0319,142.21,142.17,7.0334]
[1720032435165,7.0328,142.19,142.16,17.5847]
[1720032435469,7.0328,142.19,142.15,7.0346]
[1720032435647,7.0328,142.19,142.14,7.0352]
[1720032436353,7.0333,142.18,142.14,7.0352]
[1720032436870,7.034,142.17,142.13,18.4347316]
[1720032437052,7.0343,142.16,142.13,18.4347316]
[1720032437259,7.0343,142.16,142.13,0.8461316]
[1720032438152,7.0349,142.15,142.13,0.8461316]
[1720032438557,7.0344,142.16,142.13,0.8461316]
[1720032440470,22.8701,142.17,142.13,0.8461316]
[1720032441061,7.0343,142.16,142.13,0.8461316]
[1720032441464,7.0349,142.15,142.13,0.8461316]
[1720032441664,7.0353,142.14,142.13,0.8461316]
[1720032448987,35.1731,142.16,142.05,17.5992]
[1720032449162,35.1731,142.16,142.04,13.6875]
[1720032449163,35.1805,142.13,142.04,6.6476]
[1720032449365,7.0397,142.06,142.01,7.0417]
[1720032449561,61.7505,142.13,142.02,7.0409]
[1720032449562,7.0389,142.07,142.02,7.0409]
[1720032449764,7.0384,142.08,142.04,7.0402]
[1720032449983,7.0391,142.07,142.03,19.00821514]
[1720032450164,17.5927,142.11,142.03,26.04851514]
[1720032450165,7.0383,142.08,142.03,26.04851514]
[1720032450665,7.0389,142.07,142.03,26.04851514]
[1720032450867,7.0389,142.07,142.03,24.642]
[1720032451166,7.0399,142.05,142.01,1.40792433]
[1720032451368,7.0411,142.03,141.99,0.8461316]
[1720032451576,7.0414,142.02,141.99,0.8461316]
[1720032452285,7.0415,142.02,141.99,0.8461316]
[1720032452478,7.0409,142.03,141.99,0.8461316]
[1720032452681,7.0414,142.02,141.99,0.8461316]
[1720032453664,15.5552,142.01,141.99,0.8461316]
[1720032453978,7.0422,142.0,141.99,0.8461316]
[1720032454283,17.6108,141.96,141.9,6.04375776]
[1720032454587,7.0448,141.95,141.9,13.09055776]
[1720032454888,7.0443,141.96,141.91,7.0466]
[1720032455081,7.0447,141.95,141.91,7.0466]
[1720032455303,7.0444,141.96,141.91,7.0466]
[1720032455665,7.0448,141.95,141.9,6.04375776]
[1720032455972,7.0453,141.94,141.9,6.04375776]
[1720032456165,7.0453,141.94,141.9,0.04175776]
[1720032456678,7.0459,141.93,141.9,0.04175776]
[1720032456995,7.0462,141.92,141.9,0.04175776]
[1720032457160,7.0457,141.93,141.9,0.04175776]
[1720032458489,7.0458,141.93,141.9,0.04175776]
[1720032458689,35.2132,142.0,141.9,0.04175776]
[1720032458894,26.91,141.99,141.9,0.04175776]
[1720032459078,17.6089,141.98,141.9,0.04175776]
[1720032459587,7.0458,141.93,141.9,0.04175776]
[1720032460363,7.0462,141.92,141.9,0.04175776]
[1720032460569,17.6111,141.96,141.9,0.04175776]
[1720032460895,7.0467,141.91,141.9,0.04175776]
[1720032461188,7.0463,141.92,141.9,0.04175776]
[1720032461491,16.3137,141.94,141.9,0.04175776]
[1720032461792,7.0467,141.91,141.9,0.04175776]
[1720032465479,16.3137,141.94,141.9,0.04175776]
[1720032465689,7.0467,141.91,141.9,0.04175776]
[1720032466793,7.0463,141.92,141.9,0.04175776]
[1720032466985,7.0456,141.94,141.9,0.04175776]
[1720032467294,7.0458,141.93,141.9,0.04175776]
[1720032467490,7.0463,141.92,141.9,0.04175776]
[1720032467694,17.61,141.97,141.9,0.04175776]
[1720032467695,7.0467,141.91,141.9,0.04175776]
[1720032472080,22.9575,141.91,141.9,0.04175776]
[1720032473788,23.2975,141.91,141.9,0.04175776]
[1720032475206,16.2508,141.91,141.84,0.8461316]
[1720032475411,7.0493,141.86,141.84,0.8461316]
[1720032476415,7.0488,141.87,141.84,0.8461316]
[1720032476710,7.0492,141.86,141.84,0.8461316]
[1720032477707,7.0497,141.85,141.84,0.8461316]
[1720032480012,22.1677,141.85,141.84,0.8461316]
[1720032480792,49.0777,141.85,141.84,3.16e-05]
[1720032481001,49.0777,141.85,141.72,17.6396]
[1720032481002,7.0533,141.78,141.73,6.5361]
[1720032481403,65.7490832,141.85,141.75,17.6361]
[1720032481589,7.0519,141.81,141.77,7.0535]
[1720032481793,7.0513,141.82,141.77,7.0535]
[1720032482004,23.7210832,141.85,141.77,7.0535]
[1720032482195,23.7210832,141.85,141.75,17.6361]
[1720032482402,6.4604,141.9,141.77,6.5361]
[1720032482605,38.8317832,141.91,141.81,17.6288]
[1720032482812,7.0493,141.86,141.81,24.6801]
[1720032483017,38.8317832,141.91,141.83,17.6264]
[1720032483202,7.0478,141.89,141.83,23.6746]
[1720032483400,7.0485,141.88,141.83,30.7252]
[1720032483717,7.049,141.87,141.83,23.6746]
[1720032483895,7.0482,141.88,141.83,30.7248]
[1720032484093,6.0960832,141.91,141.83,23.6746]
[1720032484313,6.0960832,141.91,141.85,17.6237]
[1720032484621,6.0960832,141.91,141.84,7.39]
[1720032484622,7.0483,141.88,141.84,7.39]
[1720032484791,7.0478,141.89,141.84,7.39]
[1720032485600,7.0478,141.89,141.85,7.0496]
[1720032485806,7.0473,141.9,141.86,1.40963376]
[1720032486412,17.6146,141.93,141.84,17.6251]
[1720032486609,7.0487,141.87,141.83,6.0482]
[1720032486814,7.0501,141.84,141.78,17.6322]
[1720032486997,16.3292,141.9,141.79,6.3663]
[1720032487315,17.6223,141.87,141.79,6.3663]
[1720032487906,7.0502,141.84,141.79,13.4186]
[1720032488415,7.0496,141.86,141.81,7.0515]
[1720032488614,7.0496,141.86,141.82,7.0511]
[1720032488817,7.0496,141.86,141.81,7.0515]
[1720032489003,33.9477,141.9,141.8,24.6816]
[1720032489317,7.0497,141.85,141.81,7.0515]
[1720032489519,7.0486,141.88,141.82,17.9677]
[1720032489712,7.0487,141.87,141.82,17.9677]
[1720032489923,7.0484,141.88,141.84,7.0499]
[1720032490240,7.0478,141.89,141.84,7.0499]
[1720032490925,47.6771832,141.93,141.84,17.625]
[1720032491126,7.047,141.91,141.86,7.049]
[1720032491305,7.047,141.91,141.87,1.40947928]
[1720032491507,7.047,141.91,141.86,7.049]
[1720032492214,7.047,141.91,141.87,1.40946806]
[1720032492417,7.047,141.91,141.86,7.049]
[1720032492718,7.047,141.91,141.87,0.34]
[1720032493030,5.46980845,141.96,141.9,7.0469]
[1720032493202,15.6488,142.0,141.91,18.90330131]
[1720032493401,7.0462,141.92,141.87,33.9583]
[1720032493602,7.0462,141.92,141.87,7.3883]
[1720032493826,17.61,141.97,141.87,39.1414]
[1720032494025,7.0447,141.95,141.9,7.0472]
[1720032494230,7.0447,141.95,141.91,1.74897104]
[1720032494629,7.0447,141.95,141.91,1.40897104]
[1720032495332,17.6085,141.98,141.9,0.34]
[1720032495510,17.6085,141.98,141.91,0.34]
[1720032495931,17.6085,141.98,141.87,33.6183]
[1720032496134,17.6108,141.96,141.89,7.0476]
[1720032496326,7.0459,141.93,141.9,0.34]
[1720032496524,7.0462,141.92,141.88,17.7899]
[1720032496841,17.609,141.98,141.87,17.6206]
[1720032497038,17.609,141.98,141.9,7.0471]
[1720032497236,7.0441,141.97,141.88,0.17]
[1720032497438,7.0441,141.97,141.92,7.046]
[1720032497946,7.0442,141.96,141.91,24.8328]
[1720032498258,17.6073,141.99,141.89,7.0473]
[1720032498430,17.6096,141.97,141.9,7.2169]
[1720032498753,17.6096,141.97,141.91,1.40900487]
[1720032498958,7.0447,141.95,141.91,1.40900487]
[1720032499141,7.0447,141.95,141.9,7.2169]
[1720032499475,7.0454,141.94,141.9,0.17]
[1720032499628,7.0454,141.94,141.9,0.34]
[1720032500151,7.0457,141.93,141.9,0.34]
[1720032500552,7.0454,141.94,141.9,0.34]
[1720032500944,17.6096,141.97,141.88,17.6199]
[1720032501247,7.0459,141.93,141.88,7.048]
[1720032501825,7.0466,141.92,141.87,17.6213]
[1720032502154,7.0475,141.9,141.85,13.6278]
[1720032502551,7.0473,141.9,141.85,13.6278]
[1720032502858,7.0477,141.89,141.85,13.6278]
[1720032504046,61.7935,141.96,141.82,253.7]
[1720032504047,35.2312,141.92,141.82,253.7]
[1720032504245,7.0483,141.88,141.83,7.0502]
[1720032504564,7.0488,141.87,141.83,17.6264]
[1720032505154,26.57,141.93,141.81,6.5631]
[1720032505155,7.0494,141.86,141.81,6.5631]
[1720032505347,7.0494,141.86,141.81,13.6144]
[1720032505566,7.0486,141.88,141.82,19.03749619]
[1720032505762,7.0477,141.89,141.84,17.6251]
[1720032505963,7.0477,141.89,141.84,24.6749]
[1720032506155,7.0483,141.88,141.84,24.6749]
[1720032506469,17.6149,141.93,141.84,24.6749]
[1720032506470,7.0479,141.89,141.84,24.6749]
[1720032507042,7.0482,141.88,141.84,24.6749]
[1720032507366,21.3689,141.94,141.82,7.0508]
[1720032507367,7.0488,141.87,141.82,7.0508]
[1720032507742,7.0483,141.88,141.83,7.0505]
[1720032508469,7.0477,141.89,141.84,7.05]
[1720032508642,7.0477,141.89,141.84,8.4597208]
[1720032509570,7.0482,141.88,141.84,8.4597208]
[1720032509771,7.0482,141.88,141.83,24.6767]
[1720032509944,7.0487,141.87,141.83,24.6767]